bitfinex/quotes_ETHUSD_20240612
["timestamp","ask_amount","ask_price","bid_price","bid_amount"]
[1718195808205,0.55,3623.8,3622.5,2.7605]
[1718195808521,2.75904,3624.5,3622.0,0.30552078]
[1718195808522,2.75863,3625.0,3622.6,0.33677206]
[1718195808706,2.289,3625.6,3622.7,0.05519176]
[1718195808907,2.289,3625.6,3622.0,0.30552078]
[1718195809186,2.289,3625.6,3622.1,0.05519438]
[1718195809309,2.7586,3625.1,3623.1,2.76006]
[1718195809649,2.7586,3625.1,3623.2,0.05519158]
[1718195809803,2.7586,3625.1,3623.3,2.75989]
[1718195810009,2.7586,3625.1,3623.6,2.75967]
[1718195810238,2.7586,3625.1,3623.1,2.76]
[1718195810448,2.289,3625.6,3622.2,3.0]
[1718195810449,1.43344514,3624.5,3622.2,3.0]
[1718195810648,0.1228472,3624.6,3623.0,2.76012]
[1718195811014,0.1228472,3624.6,3623.4,2.75978]
[1718195811751,0.1228472,3624.6,3623.6,2.75965]
[1718195811965,0.1228472,3624.6,3623.4,0.275978]
[1718195811966,0.1228472,3624.6,3624.0,2.75936]
[1718195812146,0.1228472,3624.6,3624.2,2.75921]
[1718195812313,0.1228472,3624.6,3623.4,0.275978]
[1718195812314,0.1228472,3624.6,3624.4,2.75907]
[1718195812516,0.1228472,3624.6,3624.5,0.05517202]
[1718195812715,2.75702,3627.1,3625.2,2.7584]
[1718195812964,2.75669,3627.6,3625.4,2.75824]
[1718195813143,2.75669,3627.6,3624.7,2.75879]
[1718195813144,2.289,3627.0,3624.7,2.75879]
[1718195813353,5.04597,3627.2,3624.5,0.2814242]
[1718195813582,2.75747,3626.6,3624.6,0.05516809]
[1718195813887,7.51727329,3627.8,3623.7,5.7596]
[1718195813888,1.103392,3627.6,3625.8,2.75794]
[1718195814098,0.1228472,3628.2,3626.2,2.75768]
[1718195814286,2.75636,3628.0,3624.8,6.8349]
[1718195814486,2.75636,3628.0,3624.9,3.0]
[1718195814779,2.75636,3628.0,3625.1,2.75851]
[1718195815009,1.43344514,3627.9,3625.2,3.0]
[1718195815155,1.43344514,3627.9,3625.0,0.98349]
[1718195815156,1.43344514,3627.6,3625.0,0.98349]
[1718195815344,2.4118472,3628.2,3624.8,6.8349]
[1718195815345,0.1228472,3628.2,3624.8,6.8349]
[1718195815538,0.1228472,3628.2,3624.9,6.05515027]
[1718195815742,0.1228472,3628.2,3626.4,2.75751]
[1718195816037,0.1228472,3628.2,3626.1,2.75774]
[1718195816038,2.289,3628.1,3626.1,2.75774]
[1718195816239,1.379833,3629.3,3626.3,9.74839]
[1718195816507,3.0,3631.1,3625.7,3.0]
[1718195816508,0.036283,3630.0,3629.9,2.75489]
[1718195816637,0.036283,3630.0,3629.3,0.28782715]
[1718195817204,0.036283,3630.0,3629.3,3.04316715]
[1718195817644,0.036283,3630.0,3629.5,2.75513]
[1718195817846,0.036283,3630.0,3629.4,3.05508794]
[1718195817847,0.1228472,3631.8,3629.7,2.75503]
[1718195818004,0.1228472,3631.8,3629.3,0.28782715]
[1718195818200,6.7669,3631.7,3629.3,0.28782715]
[1718195818459,0.1228472,3631.8,3626.9,3.54397564]
[1718195818460,2.75531,3629.4,3626.9,2.75717]
[1718195818649,2.75531,3629.4,3625.7,7.1827]
[1718195818650,9.7669,3630.5,3627.5,2.75671]
[1718195818933,9.7669,3630.5,3626.0,3.0]
[1718195818934,2.75467,3630.2,3627.6,7.1827]
[1718195819100,3.706827,3630.2,3627.7,0.71827]
[1718195819502,3.706827,3630.2,3626.2,3.0]
[1718195819503,2.75539,3629.3,3627.1,2.75695]
[1718195819849,2.75539,3629.3,3626.4,7.0307]
[1718195819850,2.75614,3628.3,3626.4,7.0307]
[1718195820143,3.55,3630.1,3626.4,7.0307]
[1718195820144,0.952157,3630.2,3626.4,7.0307]
[1718195820328,2.75535,3629.3,3626.9,2.75716]
[1718195820572,2.75535,3629.3,3627.4,2.75678]
[1718195820742,2.75488,3630.0,3627.7,2.75656]
[1718195820944,5.04337,3630.6,3627.9,2.75634]
[1718195821281,0.1228472,3631.8,3629.4,2.7552]
[1718195821282,7.1295,3631.5,3629.4,2.7552]
[1718195821485,0.1228472,3631.8,3630.0,2.75478]
[1718195821691,0.1228472,3631.8,3630.1,0.05507028]
[1718195821890,0.1228472,3631.8,3631.7,2.75353]
[1718195822387,1.101549,3634.2,3631.8,6.8203]
[1718195822543,0.30828855,3634.3,3633.0,2.75247]
[1718195822744,0.30828855,3634.3,3631.9,3.0550382]
[1718195822745,0.030717,3634.2,3633.1,0.05503949]
[1718195822980,0.030717,3634.2,3631.7,0.275353]
[1718195822981,0.030717,3634.2,3632.7,1.08142846]
[1718195823150,0.030717,3634.2,3631.7,3.028813]
[1718195823151,2.75204,3633.7,3630.9,2.75406]
[1718195823349,2.75204,3633.7,3629.7,7.0312]
[1718195823350,0.30828855,3634.3,3631.1,0.75]
[1718195823564,0.30828855,3634.3,3631.8,2.75343]
[1718195823785,0.30828855,3634.3,3631.1,10.4457]
[1718195823786,0.30828855,3634.3,3632.0,2.75325]
[1718195824081,0.30828855,3634.3,3631.1,10.4457]
[1718195824082,0.30828855,3634.3,3632.6,2.75277]
[1718195824313,0.30828855,3634.3,3631.9,1.100825]
[1718195824512,0.30828855,3634.3,3632.0,0.05503848]
[1718195824698,0.30828855,3634.3,3632.0,1.661]
[1718195824903,0.30828855,3634.3,3631.9,3.0]
[1718195824904,0.30828855,3634.3,3633.1,2.7524]
[1718195825228,0.30828855,3634.3,3634.1,2.75165]
[1718195825524,0.01103001,3635.1,3633.4,2.75218]
[1718195825810,0.01103001,3635.1,3632.2,3.0]
[1718195825811,0.01103001,3635.1,3632.1,0.5411]
[1718195826115,0.01103001,3635.1,3632.3,2.289]
[1718195826299,0.01103001,3635.1,3632.4,0.75]
[1718195826472,0.01103001,3635.1,3633.2,2.75233]
[1718195826670,0.01103001,3635.1,3632.5,9.84848]
[1718195826671,2.75107,3635.0,3632.5,9.84848]
[1718195826899,0.01103001,3635.1,3632.5,9.84848]
[1718195826900,2.75149,3634.4,3632.5,2.75288]
[1718195827099,0.01103001,3635.1,3633.1,2.75245]
[1718195827338,2.75112,3634.9,3633.1,2.75245]
[1718195828058,0.01103001,3635.1,3632.5,0.275288]
[1718195828059,2.75156,3634.4,3632.5,0.275288]
[1718195828265,2.75103,3635.0,3631.9,3.0]
[1718195828540,0.01103001,3635.1,3632.7,2.75274]
[1718195828541,2.75123,3634.8,3632.7,2.75274]
[1718195828745,2.75123,3634.8,3632.9,2.7526]
[1718195828944,2.75123,3634.8,3632.8,3.027934]
[1718195829243,0.01103001,3635.1,3633.3,2.75229]
[1718195829459,0.01103001,3635.1,3633.4,3.0]
[1718195829751,0.01103001,3635.1,3633.3,2.75229]
[1718195829908,0.01103001,3635.1,3632.9,10.4886]
[1718195829909,2.75104,3635.0,3632.9,10.4886]
[1718195830245,2.75104,3635.0,3632.0,2.75322]
[1718195830246,2.289,3634.3,3632.0,2.75322]
[1718195830449,2.7511,3635.0,3632.5,2.75291]
[1718195830613,2.289,3634.3,3631.2,1.100822]
[1718195830814,0.55,3634.2,3630.8,7.1711]
[1718195831152,0.55,3634.2,3629.2,0.75]
[1718195831153,2.289,3633.4,3630.7,1.101285]
[1718195831357,2.75306,3632.4,3630.7,1.101285]
[1718195831508,2.75306,3632.4,3629.7,7.4585]
[1718195831509,0.55,3632.3,3629.7,10.21354]
[1718195831709,0.55,3632.3,3629.7,11.315059]
[1718195831960,2.289,3633.4,3629.7,12.310019]
[1718195832153,2.75234,3633.3,3631.3,2.75376]
[1718195832353,2.75234,3633.3,3631.2,2.75385]
[1718195832672,2.75179,3634.0,3631.8,2.75342]
[1718195833194,0.75,3634.1,3630.1,2.75472]
[1718195833410,2.75305,3632.4,3630.1,2.75472]
[1718195833550,2.75325,3632.1,3630.2,0.275472]
[1718195834196,2.75344,3631.9,3629.5,2.75517]
[1718195834495,2.75365,3631.6,3629.4,2.75524]
[1718195834679,2.75365,3631.6,3629.0,1.101818]
[1718195834680,2.289,3631.5,3629.0,1.101818]
[1718195834881,2.289,3631.5,3629.8,2.75492]
[1718195834882,2.839,3631.5,3629.8,2.75492]
[1718195835096,2.839,3631.5,3629.8,3.030412]
[1718195835601,0.55,3631.5,3629.8,3.030412]
[1718195836011,0.55,3631.5,3629.8,0.275492]
[1718195836235,0.55,3631.5,3629.2,2.75539]
[1718195836236,1.98344514,3631.5,3629.2,2.75539]
[1718195836370,1.98344514,3631.5,3628.4,3.0]
[1718195836371,0.1,3632.0,3629.9,2.75486]
[1718195836988,0.1,3632.0,3630.4,2.75446]
[1718195837170,0.1,3632.0,3629.3,3.0]
[1718195837171,0.1,3632.0,3630.9,2.75411]
[1718195837566,2.75346,3631.8,3629.5,2.75519]
[1718195837773,2.75346,3631.8,3629.6,0.275519]
[1718195838075,0.1,3632.0,3628.8,7.1045]
[1718195838076,0.1,3632.0,3630.6,2.75434]
[1718195838294,0.1,3632.0,3631.1,2.75394]
[1718195838701,0.1,3632.0,3630.3,3.0]
[1718195838702,0.1,3632.0,3630.5,2.7544]
[1718195839234,0.1,3632.0,3629.9,2.75483]
[1718195839235,2.75352,3631.8,3629.9,2.75483]
[1718195839430,1.43344514,3631.7,3629.9,2.75483]
[1718195839629,1.43344514,3631.7,3629.9,3.030313]
[1718195839833,2.75352,3631.8,3629.9,3.030313]
[1718195839834,0.55,3631.6,3629.9,3.030313]
[1718195840016,2.75352,3631.8,3629.9,3.030313]
[1718195840017,0.55,3631.7,3629.9,3.030313]
[1718195841733,0.55,3631.7,3628.4,3.0]
[1718195841734,0.1,3632.0,3630.0,3.0]
[1718195841893,2.754,3631.1,3629.0,2.75553]
[1718195842309,2.75414,3630.9,3629.0,2.75553]
[1718195842526,0.55,3630.8,3629.2,2.75542]
[1718195843112,2.7543,3630.7,3629.1,0.275553]
[1718195843437,0.55,3630.6,3628.7,2.7558]
[1718195843640,2.75393,3631.2,3629.1,2.75543]
[1718195843803,2.75433,3630.7,3627.9,11.330423]
[1718195844004,2.289,3631.4,3628.7,2.75575]
[1718195844204,2.75386,3631.3,3629.3,2.75534]
[1718195844434,0.05,3631.0,3629.3,3.030874]
[1718195844644,2.75415,3630.9,3629.3,3.030874]
[1718195844857,2.75415,3630.9,3629.3,2.75534]
[1718195844999,2.75415,3630.9,3628.0,3.0]
[1718195845515,0.55,3630.8,3628.0,3.0]
[1718195845823,2.75432,3630.7,3629.1,2.75548]
[1718195846022,0.55,3630.6,3629.1,2.75548]
[1718195846228,0.55,3630.6,3629.1,3.031028]
[1718195846423,0.55,3630.9,3629.1,3.031028]
[1718195847135,2.75428,3630.8,3629.1,2.75548]
[1718195847440,0.55,3630.9,3627.9,7.2283]
[1718195847441,2.75451,3630.5,3628.5,2.75591]
[1718195847602,2.75451,3630.5,3627.9,7.2283]
[1718195847603,0.55,3630.4,3627.9,7.2283]
[1718195847936,0.55,3630.4,3629.0,2.75553]
[1718195848136,0.55,3630.4,3629.4,2.75524]
[1718195848343,0.05,3631.0,3630.2,2.75463]
[1718195848645,0.05,3631.0,3629.5,3.030714]
[1718195849444,0.05,3631.0,3630.3,2.75454]
[1718195849734,0.05,3631.0,3629.8,2.75493]
[1718195849933,0.05,3631.0,3628.8,3.0]
[1718195849934,0.05,3631.0,3629.7,2.755]
[1718195850944,0.55,3630.9,3629.7,2.755]
[1718195851636,0.05,3631.0,3628.2,2.75615]
[1718195851864,0.05,3631.0,3629.6,2.7551]
[1718195852758,0.05,3631.0,3628.4,2.75601]
[1718195852924,0.05,3631.0,3628.3,3.0]
[1718195852925,0.05,3631.0,3629.3,2.75533]
[1718195853104,2.75389,3631.3,3629.3,2.75533]
[1718195853301,3.0,3631.8,3629.3,2.75533]
[1718195853302,3.0,3631.8,3629.3,0.275533]
[1718195853643,3.0,3631.8,3628.4,2.75597]
[1718195853644,2.75449,3630.5,3629.0,2.75554]
[1718195853805,2.75413,3631.0,3629.0,2.75554]
[1718195854239,2.75413,3631.0,3629.4,2.75523]
[1718195854404,3.0,3631.4,3629.4,2.75523]
[1718195854611,0.1,3632.0,3629.8,2.75492]
[1718195854805,0.1,3632.0,3629.9,0.275492]
[1718195855104,0.1,3632.0,3630.6,2.75436]
[1718195855344,0.1,3632.0,3630.1,2.75467]
[1718195855641,2.75338,3631.9,3630.5,2.75439]
[1718195856005,2.75338,3631.9,3628.7,2.7558]
[1718195856006,2.75338,3631.9,3630.0,2.75475]
[1718195856205,2.75368,3631.6,3630.0,2.75475]
[1718195856403,2.75368,3631.6,3629.5,2.75517]
[1718195856404,2.75396,3631.2,3629.5,2.75517]
[1718195856606,9.8924,3631.5,3629.5,2.75517]
[1718195857036,2.75391,3631.2,3629.5,2.75517]
[1718195857351,9.8924,3631.5,3628.3,7.3741]
[1718195857548,2.75399,3631.1,3629.7,2.75502]
[1718195857839,2.75399,3631.1,3628.5,2.75593]
[1718195857840,9.8924,3631.5,3630.0,2.75474]
[1718195858045,6.8924,3631.5,3630.3,2.75452]
[1718195858242,2.75376,3631.4,3629.9,2.75488]
[1718195858441,6.8924,3631.5,3630.3,2.75456]
[1718195858616,2.75343,3631.9,3630.3,2.75456]
[1718195858818,2.75396,3631.2,3630.4,0.275456]
[1718195859134,2.75396,3631.2,3629.8,2.75497]
[1718195859640,2.75396,3631.2,3629.4,2.75526]
[1718195859842,2.75396,3631.2,3629.7,2.75497]
[1718195860207,0.1,3632.0,3629.5,0.05509398]
[1718195860208,0.1,3632.0,3631.6,2.7536]
[1718195861055,0.1,3632.0,3630.4,3.0]
[1718195861056,0.1,3632.0,3631.8,2.75345]
[1718195861256,2.76483419,3634.1,3632.9,2.75256]
[1718195861257,0.47583419,3634.1,3632.9,2.75256]
[1718195861425,0.01103001,3635.1,3633.5,2.7521]
[1718195862018,0.01103001,3635.1,3634.0,2.75176]
[1718195862263,0.01103001,3635.1,3634.4,2.75148]
[1718195862559,0.01103001,3635.1,3634.6,2.75127]
[1718195863065,0.01103001,3635.1,3633.7,2.75197]
[1718195863279,0.01103001,3635.1,3634.0,2.75172]
[1718195863490,0.01103001,3635.1,3633.9,2.75179]
[1718195863755,0.01103001,3635.1,3633.9,0.05502215]
[1718195863968,0.01103001,3635.1,3633.3,7.3733]
[1718195863969,0.01103001,3635.1,3634.6,2.75132]
[1718195864117,0.01103001,3635.1,3633.3,7.3733]
[1718195864312,0.01103001,3635.1,3633.4,0.73733]
[1718195864562,0.01103001,3635.1,3633.0,0.275256]
[1718195864775,0.01103001,3635.1,3632.6,2.75278]
[1718195865126,2.289,3635.0,3632.6,2.75278]
[1718195865432,2.289,3635.0,3633.3,2.75231]
[1718195865641,0.01103001,3635.1,3632.4,7.2768]
[1718195865840,0.01103001,3635.1,3633.4,0.05503202]
[1718195866040,0.1228472,3635.3,3633.4,0.05503202]
[1718195866041,0.1228472,3635.3,3634.6,6.9322]
[1718195866358,0.1228472,3635.3,3634.7,2.75122]
[1718195866673,0.1228472,3635.3,3633.4,7.5129412]
[1718195866674,0.1228472,3635.3,3634.0,2.75176]
[1718195866829,0.1228472,3635.3,3631.7,6.84144128]
[1718195866830,2.75093,3635.2,3633.0,2.75249]
[1718195867171,2.289,3635.2,3633.2,2.75237]
[1718195867328,2.75144,3634.5,3632.2,2.75311]
[1718195867532,0.55,3634.4,3632.4,2.75295]
[1718195867737,2.75158,3634.3,3632.4,2.75295]
[1718195868077,0.55,3634.2,3631.7,2.75347]
[1718195868368,2.273,3634.2,3631.5,2.75367]
[1718195868534,3.30174,3634.1,3632.0,2.75327]
[1718195868731,3.30174,3634.1,3632.2,2.75308]
[1718195869130,0.005,3634.0,3632.2,2.75308]
[1718195869564,0.005,3634.0,3631.7,7.2538]
[1718195869866,0.005,3634.0,3632.3,2.753]
[1718195870064,0.005,3634.0,3632.5,2.75288]
[1718195870871,0.005,3634.0,3631.7,7.2538]
[1718195870872,2.752,3633.8,3631.6,3.028947]
[1718195871259,2.752,3633.8,3631.8,2.75342]
[1718195871260,0.55,3633.7,3631.8,2.75342]
[1718195871471,0.005,3634.0,3633.4,2.75222]
[1718195872472,0.005,3634.0,3633.6,2.75206]
[1718195872661,0.005,3634.0,3633.5,0.05503479]
[1718195872662,0.005,3634.0,3633.8,2.75194]
[1718195873040,0.005,3634.0,3633.9,0.05502932]
[1718195873277,0.005,3634.0,3633.9,0.05502614]
[1718195873436,0.005,3634.0,3633.9,0.05502509]
[1718195873771,0.005,3634.0,3633.8,2.75194]
[1718195873970,0.005,3634.0,3633.9,0.30326495]
[1718195874277,0.005,3634.0,3633.8,2.75194]
[1718195874637,0.005,3634.0,3631.6,1.025367]
[1718195874638,0.005,3634.0,3633.0,2.75249]
[1718195875179,0.005,3634.0,3632.6,2.7528]
[1718195875379,0.005,3634.0,3633.1,2.75246]
[1718195875880,0.005,3634.0,3633.3,2.75228]
[1718195876580,0.005,3634.0,3632.5,2.75287]
[1718195876947,0.005,3634.0,3632.9,2.75255]
[1718195877141,0.005,3634.0,3632.4,7.0553]
[1718195877342,0.005,3634.0,3633.3,2.75228]
[1718195877578,2.273,3635.1,3631.7,5.75346]
[1718195877579,2.273,3635.1,3635.0,2.75103]
[1718195877880,0.08549089,3635.7,3634.7,2.75121]
[1718195878482,0.08549089,3635.7,3634.7,0.275121]
[1718195878774,0.08549089,3635.7,3633.2,10.2729]
[1718195878775,0.08549089,3635.7,3634.5,2.7514]
[1718195879641,0.01,3636.0,3633.2,10.2729]
[1718195879642,0.01,3636.0,3634.7,7.4604]
[1718195879872,0.01,3636.0,3634.4,2.75142]
[1718195879873,0.01,3636.0,3634.8,0.05500141]
[1718195880060,2.56456,3637.0,3634.0,2.75174]
[1718195880262,9.84278,3636.7,3634.8,2.75113]
[1718195880588,2.273,3636.5,3634.8,2.75113]
[1718195880808,9.84278,3636.7,3635.2,2.75082]
[1718195881092,0.00803419,3637.2,3635.5,2.75064]
[1718195881296,0.00803419,3637.2,3635.8,2.75039]
[1718195881477,0.00803419,3637.2,3634.5,2.765]
[1718195881478,2.74944,3637.1,3635.3,2.75078]
[1718195881676,2.74944,3637.1,3635.6,2.75052]
[1718195881854,2.74944,3637.1,3633.7,2.273]
[1718195881855,2.74989,3636.6,3635.0,2.75096]
[1718195882609,2.74989,3636.6,3633.4,7.4686]
[1718195882610,2.75016,3636.2,3634.5,2.75138]
[1718195882903,2.75041,3635.9,3634.0,2.75175]
[1718195883074,1.43344514,3636.1,3634.0,2.75175]
[1718195883075,2.75055,3635.7,3634.1,0.275175]
[1718195883254,2.75013,3636.2,3634.1,0.275175]
[1718195883456,2.27,3636.8,3634.0,2.75171]
[1718195883457,2.75063,3635.6,3634.0,2.75171]
[1718195883757,2.75108,3635.0,3633.5,2.75214]
[1718195883961,2.75108,3635.0,3632.4,7.3216]
[1718195883962,2.75108,3635.0,3633.0,2.75252]
[1718195884258,0.55,3634.9,3632.4,7.3216]
[1718195884466,9.67828,3635.6,3632.4,7.3216]
[1718195884467,2.75058,3635.6,3632.5,0.0550332]
[1718195884764,6.8089,3636.0,3632.6,0.73766332]
[1718195884765,2.75141,3634.5,3632.6,0.73766332]
[1718195885091,2.75158,3634.3,3632.8,2.75262]
[1718195885293,2.75158,3634.3,3632.3,2.75304]
[1718195885600,2.75158,3634.3,3632.4,0.275304]
[1718195885601,2.75192,3633.9,3632.4,0.275304]
[1718195885793,6.7897,3634.3,3632.2,2.7531]
[1718195885794,2.75204,3633.7,3632.2,2.7531]
[1718195885998,2.75204,3633.7,3631.6,0.275367]
[1718195885999,3.3021,3633.6,3631.6,0.275367]
[1718195886291,3.3021,3633.6,3630.8,6.8414]
[1718195886292,2.7521,3633.6,3630.8,6.8414]
[1718195886520,0.55,3633.5,3632.1,2.75317]
[1718195886816,2.75174,3634.1,3632.2,0.05505602]
[1718195887014,2.75174,3634.1,3630.6,2.27]
[1718195887015,1.43344514,3633.3,3630.7,2.75425]
[1718195887294,2.27,3633.4,3630.7,2.75425]
[1718195887295,1.43344514,3633.1,3630.7,2.75425]
[1718195887501,1.43344514,3633.1,3631.1,2.75392]
[1718195887502,2.75298,3632.5,3631.1,2.75392]
[1718195887863,1.43344514,3632.4,3631.1,2.75392]
[1718195888067,3.0,3634.0,3631.2,0.05507524]
[1718195888272,1.43344514,3633.9,3632.2,2.75314]
[1718195888500,0.75,3634.7,3632.4,2.75298]
[1718195888501,2.75165,3634.2,3632.4,2.75298]
[1718195888658,2.75165,3634.2,3631.1,2.75398]
[1718195888659,4.18509514,3634.2,3632.7,2.75276]
[1718195888855,2.75192,3633.9,3632.5,0.28080342]
[1718195889058,1.43344514,3633.8,3632.2,2.75312]
[1718195889462,2.75205,3633.7,3632.2,2.75312]
[1718195889592,2.27,3634.8,3631.4,3.0]
[1718195889593,2.75221,3633.5,3632.1,2.75319]
[1718195889796,1.43344514,3633.4,3632.1,2.75319]
[1718195890120,2.7513,3634.7,3633.0,2.75249]
[1718195890273,2.7513,3634.7,3633.0,3.027739]
[1718195890468,2.75212,3633.6,3631.1,7.3147]
[1718195890673,2.75212,3633.6,3632.1,2.75315]
[1718195890674,1.43344514,3633.5,3632.1,2.75315]
[1718195890908,1.43344514,3633.5,3629.6,3.02]
[1718195890909,2.27,3634.6,3632.0,2.75326]
[1718195891231,1.43344514,3633.5,3631.3,6.8059]
[1718195891377,1.43344514,3633.4,3630.5,1.25126285]
[1718195891570,6.95974451,3633.3,3630.3,1.25126285]
[1718195891782,1.43344514,3633.2,3631.1,2.75394]
[1718195891986,2.7532,3632.2,3630.6,2.75432]
[1718195892181,1.43344514,3632.1,3630.6,2.75432]
[1718195892413,0.55,3632.0,3630.6,2.75432]
[1718195892620,0.55,3632.0,3629.6,7.3026]
[1718195892621,0.55,3632.0,3631.1,2.75393]
[1718195892772,2.75277,3632.8,3631.1,2.75393]
[1718195892976,1.98344514,3632.7,3631.1,2.75393]
[1718195893585,2.75292,3632.6,3631.1,2.75393]
[1718195893796,2.75305,3632.4,3630.6,2.75436]
[1718195893997,2.75315,3632.2,3630.6,2.75436]
[1718195894210,1.98344514,3632.3,3629.6,8.55386285]
[1718195894211,0.55,3632.3,3631.1,2.75397]
[1718195894396,0.55,3632.1,3630.6,2.75432]
[1718195894603,0.55,3632.1,3628.6,7.1138]
[1718195894604,1.43344514,3632.0,3629.2,1.25314099]
[1718195894785,1.92673382,3632.0,3630.0,2.75479]
[1718195895132,2.75371,3631.5,3630.0,2.75479]
[1718195895298,4.18715514,3631.5,3630.1,0.05508995]
[1718195895476,0.55,3631.9,3630.6,2.75431]
[1718195895678,1.43344514,3631.8,3630.6,2.75431]
[1718195895904,3.70694248,3632.5,3629.1,1.25314099]
[1718195896104,1.43344514,3631.7,3630.3,2.75455]
[1718195896305,1.43344514,3631.7,3629.8,2.75496]
[1718195896306,4.18703514,3631.7,3629.8,2.75496]
[1718195896619,4.18703514,3631.7,3630.4,2.75451]
[1718195896920,0.37069425,3632.4,3629.2,0.4253141]
[1718195896921,1.43344514,3631.6,3629.2,0.4253141]
[1718195897122,1.43344514,3631.6,3630.3,2.75456]
[1718195897322,0.55,3631.5,3630.3,2.75456]
[1718195897485,1.43344514,3631.4,3630.3,2.75456]
[1718195898021,0.002,3630.6,3630.3,2.75456]
[1718195898228,0.002,3630.6,3628.5,2.7559]
[1718195898229,4.18788514,3630.5,3627.9,1.25314099]
[1718195898533,4.18788514,3630.5,3627.5,6.7526]
[1718195898534,0.55,3630.4,3629.1,2.75548]
[1718195898741,0.55,3630.4,3629.3,2.75531]
[1718195900007,0.55,3630.4,3627.7,1.25451421]
[1718195900207,0.55,3630.4,3627.8,7.3487]
[1718195900538,0.55,3630.4,3629.5,2.75517]
[1718195900822,0.552,3630.6,3629.5,2.75517]
[1718195901011,6.9098,3630.0,3627.3,1.25451421]
[1718195901333,2.7549,3629.9,3628.2,2.75611]
[1718195901631,2.7549,3629.9,3628.2,3.031721]
[1718195901632,1.43344514,3629.8,3628.2,3.031721]
[1718195901826,2.7552,3629.5,3627.9,2.75639]
[1718195902067,2.75558,3629.0,3627.4,2.75679]
[1718195902322,2.75558,3629.0,3626.6,0.27535952]
[1718195902323,2.75584,3628.7,3626.9,2.75713]
[1718195902526,1.43344514,3628.6,3627.1,2.75697]
[1718195902826,1.64174562,3629.9,3627.9,2.75639]
[1718195902827,0.55,3628.5,3627.9,2.75639]
[1718195903031,6.9031,3628.3,3626.9,3.04406314]
[1718195903213,1.43344514,3628.2,3626.9,2.75712]
[1718195903384,1.43344514,3628.2,3627.4,2.75678]
[1718195903584,6.9031,3629.3,3627.5,2.75669]
[1718195903920,6.9031,3629.3,3626.9,0.275712]
[1718195903921,6.9031,3630.3,3628.9,2.75565]
[1718195904103,1.43344514,3630.2,3628.8,2.75567]
[1718195904448,2.75638,3630.6,3629.2,2.75539]
[1718195904729,0.002,3630.6,3629.6,2.75509]
[1718195905233,0.002,3630.6,3629.8,2.75494]
[1718195906210,0.002,3630.6,3630.2,2.75461]
[1718195906588,0.002,3630.6,3629.0,2.75552]
[1718195906589,0.002,3630.6,3630.4,2.75451]
[1718195906925,0.002,3630.6,3630.5,3.05508397]
[1718195907097,0.002,3630.6,3630.5,3.93604337]
[1718195908134,0.002,3630.6,3629.4,7.3154]
[1718195908135,6.8236,3630.6,3627.7,1.30752534]
[1718195908324,6.8236,3630.6,3629.6,2.75505]
[1718195908325,8.25704514,3630.6,3629.6,2.75505]
[1718195908511,0.002,3630.6,3629.6,2.75505]
[1718195908708,0.002,3630.6,3628.8,2.75571]
[1718195908910,0.002,3630.6,3630.2,2.75463]
[1718195909419,1.43344514,3630.5,3628.9,0.275571]
[1718195909615,1.43344514,3630.5,3627.9,2.75641]
[1718195909616,0.55,3630.4,3629.1,2.75544]
[1718195909820,1.43344514,3630.3,3629.1,2.75544]
[1718195910022,4.18820514,3630.1,3628.6,2.75581]
[1718195910213,0.55,3630.2,3628.0,2.75631]
[1718195910214,4.18875514,3629.4,3628.0,2.75631]
[1718195910414,1.43344514,3629.4,3628.4,2.75601]
[1718195910596,0.55,3630.2,3627.2,7.0144]
[1718195910597,2.75458,3630.4,3628.8,2.75571]
[1718195910793,7.4831,3630.7,3629.1,2.75549]
[1718195911210,7.4831,3630.7,3629.5,2.75512]
[1718195911632,1.43344514,3630.5,3629.5,2.75512]
[1718195911825,1.43344514,3630.1,3628.8,2.75568]
[1718195912026,1.43344514,3630.1,3628.2,2.75617]
[1718195912027,4.18877514,3629.4,3628.2,2.75617]
[1718195912622,0.55,3629.3,3626.9,0.275712]
[1718195912942,1.43344514,3628.9,3626.1,2.75778]
[1718195913243,1.43344514,3628.9,3627.5,2.75668]
[1718195913541,0.55,3628.8,3627.5,2.75668]
[1718195913727,1.43344514,3628.5,3627.0,2.75704]
[1718195913935,0.55,3628.4,3627.0,2.75704]
[1718195914112,0.55,3628.4,3627.4,2.75677]
[1718195914113,1.43344514,3628.3,3627.4,2.75677]
[1718195914666,1.43344514,3628.3,3625.8,2.75794]
[1718195914667,8.54114514,3627.7,3625.8,2.75794]
[1718195915040,2.27,3628.3,3625.6,2.75812]
[1718195915041,2.7572,3626.9,3625.6,2.75812]
[1718195915340,7.1077,3626.8,3625.6,2.75813]
[1718195915510,7.1077,3626.8,3626.0,2.7578]
[1718195915714,7.1077,3626.8,3626.1,8.2734]
[1718195915939,1.43344514,3627.4,3626.3,2.75758]
[1718195916274,0.55,3627.3,3626.5,2.75745]
[1718195916484,7.0439,3627.8,3626.5,2.75745]
[1718195916761,1.43344514,3627.7,3626.5,2.75745]
[1718195917276,7.0439,3627.8,3626.4,8.2727]
[1718195917277,1.43344514,3627.2,3626.4,8.2727]
[1718195917495,4.19091514,3626.5,3626.4,8.2727]
[1718195918058,4.74091514,3626.5,3626.4,8.2727]
[1718195918553,0.55,3626.5,3626.4,8.2727]
[1718195918984,7.0439,3627.8,3626.4,8.2727]
[1718195919146,2.75673,3627.5,3626.4,8.2727]